[Event "POR-ch Absolute 2019"]
[Site "Portimao"]
[Date "2019.09.11"]
[Round "4"]
[White "Galego, Luis"]
[Black "Veiga, Jose Francisco R P N"]
[Result "1-0"]
[ECO "A47"]
[WhiteElo "2501"]
[BlackElo "2345"]
[Annotator "ChessBase"]
[PlyCount "87"]
[EventDate "2019.??.??"]
[EventCountry "POR"]
[SourceTitle "playchess.com"]
[Source "ChessBase"]
[SourceQuality "1"]
[TimeControl "5400+30"]

1. d4 Nf6 2. Nf3 e6 3. e3 c5 4. Bd3 b6 5. O-O Bb7 6. Nbd2 Be7 7. e4 cxd4 8. Nxd4 d6 9. c4 O-O 10. b3 Nbd7 11. Re1 Rc8 12. Bb2 Re8 13. Rc1 Qc7 14. b4 Qb8 15. a3 Ne5 16. Bf1 Bf8 17. N4f3 Nfd7 18. Nxe5 dxe5 19. Nf3 Red8 20. Qb3 Be7 21. h3 Bf6 22. Qe3 a5 23. Bc3 Qa8 24. h4 Ba6 25. Bb2 Qb8 26. g3 Qc7 27. Red1 Be7 28. Qb3 Bb7 29. Re1 Bd6 30. Bc3 Nb8 31. Rb1 Ba8 32. Qb2 f6 33. Qb3 Nc6 34. c5 bxc5 35. Qxe6+ Kh8 36. b5 Nd4 37. Bxd4 cxd4 38. b6 Qd7 39. Qxd7 Rxd7 40. Bh3 Rcd8 41. Bxd7 Rxd7 42. Rec1 Bb7 43. Nd2 d3 44. Rc3 1-0

[Event "POR-ch Absolute 2019"]
[Site "Portimao"]
[Date "2019.09.11"]
[Round "4"]
[White "Damaso, Rui"]
[Black "Rocha, Sergio"]
[Result "1-0"]
[ECO "A14"]
[WhiteElo "2416"]
[BlackElo "2356"]
[Annotator "NA"]
[PlyCount "101"]
[EventDate "2019.??.??"]
[EventCountry "POR"]
[SourceTitle "playchess.com"]
[Source "ChessBase"]
[SourceQuality "1"]
[TimeControl "5400+30"]

1. c4 Nf6 2. g3 e6 3. Bg2 d5 4. Nf3 Be7 5. b3 O-O 6. O-O c5 7. e3 Nc6 8. Bb2 b6 9. Qe2 Bb7 10. Rd1 Qc7 11. Nc3 dxc4 12. Nb5 Qb8 13. bxc4 a6 14. Nc3 Qc7 15. Rab1 Na5 16. Ba1 Nd7 17. d3 Bf6 18. h4 Rab8 19. a4 Rfd8 20. h5 h6 21. Nh2 Bxg2 22. Kxg2 Nc6 23. f4 Ne7 24. Ng4 Kf8 25. Kf2 Qc6 26. Nxf6 Nxf6 27. g4 Rb7 28. Rg1 Rbd7 29. Rbd1 Qd6 30. Qb2 e5 31. Ne2 Qe6 32. f5 Nxf5 33. Qxe5 Ne7 34. Qxe6 fxe6 35. Nf4 Kf7 36. Ke2 Nc6 37. g5 hxg5 38. Rxg5 Rh8 39. Rb1 Rd6 40. Bc3 a5 41. Rf1 Ne7 42. e4 Rc6 43. e5 Nh7 44. Ng6+ Ke8 45. Nxe7 Kxe7 46. Rxg7+ Kd8 47. Rff7 Nf8 48. Bd2 Ke8 49. h6 Rc8 50. Re7+ Kd8 51. Bg5 1-0

[Event "POR-ch Absolute 2019"]
[Site "Portimao"]
[Date "2019.09.11"]
[Round "4"]
[White "Fernandes, Antonio"]
[Black "Leonardo, Joao"]
[Result "1-0"]
[ECO "E62"]
[WhiteElo "2368"]
[BlackElo "2177"]
[Annotator "NA"]
[PlyCount "73"]
[EventDate "2019.??.??"]
[EventCountry "POR"]
[SourceTitle "playchess.com"]
[Source "ChessBase"]
[SourceQuality "1"]
[TimeControl "5400+30"]

1. Nf3 d6 2. d4 Nf6 3. g3 g6 4. Bg2 Bg7 5. O-O O-O 6. c4 Nc6 7. Nc3 Bg4 8. h3 Bxf3 9. Bxf3 Nd7 10. e3 e5 11. dxe5 Ndxe5 12. Be2 Nd7 13. Qc2 Nc5 14. a3 Qd7 15. Kh2 Rae8 16. Bd2 Ne6 17. f4 f5 18. b4 Kh8 19. Rae1 Ne7 20. Bf3 c6 21. Rd1 Qc7 22. Be1 Rd8 23. Qb3 Rfe8 24. Bf2 a6 25. Rd2 Nc8 26. Rfd1 Qf7 27. e4 Qf6 28. Rd3 h6 29. c5 dxc5 30. bxc5 Rxd3 31. Rxd3 Qe7 32. Qc4 Bf8 33. exf5 gxf5 34. Bh5 Rd8 35. Re3 Rd2 36. Rxe6 Qxc5 37. Rxh6+ 1-0

[Event "POR-ch Absolute 2019"]
[Site "Portimao"]
[Date "2019.09.11"]
[Round "4"]
[White "Dias, Paulo"]
[Black "Fidalgo, Andre Neves"]
[Result "1/2-1/2"]
[ECO "D85"]
[WhiteElo "2322"]
[BlackElo "2261"]
[Annotator "NA"]
[PlyCount "64"]
[EventDate "2019.??.??"]
[EventCountry "POR"]
[SourceTitle "playchess.com"]
[Source "ChessBase"]
[SourceQuality "1"]
[TimeControl "5400+30"]

1. d4 Nf6 2. c4 g6 3. Nc3 d5 4. cxd5 Nxd5 5. e4 Nxc3 6. bxc3 Bg7 7. Be3 c5 8. Qd2 Qa5 9. Nf3 O-O 10. Rc1 Rd8 11. d5 e6 12. Be2 b6 13. O-O Nc6 14. Bg5 f6 15. Bf4 Ba6 16. c4 Qxd2 17. Bxd2 Ne7 18. Rfe1 h6 19. h4 Re8 20. Bd3 Rad8 21. a4 f5 22. Bb1 fxe4 23. Bxe4 exd5 24. cxd5 Kf7 25. Rcd1 Bc4 26. Bxh6 Nxd5 27. Bxd5+ Rxd5 28. Ng5+ Kf6 29. Nh7+ Kf7 30. Ng5+ Kf6 31. Nh7+ Kf7 32. Ng5+ Kf6 1/2-1/2

[Event "POR-ch Absolute 2019"]
[Site "Portimao"]
[Date "2019.09.11"]
[Round "4"]
[White "Rego, Pedro Filipe"]
[Black "Sousa, Andre Ventura"]
[Result "1/2-1/2"]
[ECO "C67"]
[WhiteElo "2235"]
[BlackElo "2362"]
[Annotator "NA"]
[PlyCount "161"]
[EventDate "2019.??.??"]
[EventCountry "POR"]
[SourceTitle "playchess.com"]
[Source "ChessBase"]
[SourceQuality "1"]
[TimeControl "5400+30"]

1. e4 e5 2. Nf3 Nc6 3. Bb5 Nf6 4. O-O Nxe4 5. Re1 Nd6 6. Nxe5 Be7 7. Bf1 Nxe5 8. Rxe5 O-O 9. d4 Bf6 10. Re2 b6 11. Re1 Re8 12. c3 Bb7 13. Bf4 Rxe1 14. Qxe1 Qe7 15. Qxe7 Bxe7 16. Nd2 Re8 17. Re1 Bd8 18. Rxe8+ Nxe8 19. Bd3 g5 20. Bg3 Ng7 21. f3 h5 22. Nc4 h4 23. Be1 Ne6 24. Bd2 h3 25. gxh3 Bxf3 26. Ne5 Bd5 27. Nxd7 Bxa2 28. Be4 Be7 29. Ne5 Bd6 30. Ng4 Kf8 31. Nf6 Ke7 32. Ng8+ Ke8 33. Nf6+ Kd8 34. Kg2 Nf4+ 35. Kf3 Ne6 36. d5 Ke7 37. Ng8+ Kf8 38. dxe6 Kxg8 39. exf7+ Kxf7 40. Bxg5 Bxh2 41. Bf4 Bxf4 42. Kxf4 Kf6 43. Bf5 a5 44. Bd7 Bd5 45. h4 c6 46. h5 b5 47. Ke3 b4 48. cxb4 axb4 49. Kd4 Kg5 50. Be8 b3 51. Kc5 Bf3 52. Kb4 Bd5 53. Bg6 Kh6 54. Kc5 Kg5 55. Kd4 Kh6 56. Kc5 Kg5 57. Be8 Bf3 58. Bf7 Kf6 59. Bxb3 Bxh5 60. Kxc6 Ke7 61. Bc4 Kd8 62. Ba6 Bf3+ 63. Kb6 Bd5 64. b4 Bf3 65. Ka7 Bc6 66. Bb7 Bb5 67. Kb6 Bd3 68. Ba6 Be4 69. Ka7 Bc6 70. Kb8 Bd7 71. Kb7 Ba4 72. Be2 Bd7 73. Bd3 Ba4 74. Ba6 Bd7 75. Kb6 Ba4 76. Bb5 Bc2 77. Kb7 Be4+ 78. Kb8 Bd5 79. Ba6 Bc6 80. b5 Bxb5 81. Bxb5 1/2-1/2

[Event "POR-ch Absolute 2019"]
[Site "Portimao"]
[Date "2019.09.12"]
[Round "5.3"]
[White "Leonardo, Joao"]
[Black "Damaso, Rui"]
[Result "0-1"]
[ECO "A00"]
[WhiteElo "2177"]
[BlackElo "2416"]
[Annotator "RC"]
[PlyCount "88"]
[EventDate "2019.09.07"]
[EventType "tourn"]
[EventCountry "POR"]
[SourceTitle "playchess.com"]
[Source "ChessBase"]
[SourceQuality "1"]
[TimeControl "5400+30"]

1. d3 {[%emt 0:00:00]} b6 {[%emt 0:00:00]} 2. Nf3 {[%emt 0:00:00]} Bb7 {[%emt 0:00:00]} 3. Nbd2 {[%emt 0:00:00]} g6 {[%emt 0:00:37]} 4. e4 {[%emt 0:00:00]} c5 {[%emt 0:00:09]} 5. g3 {[%emt 0:00:16]} Bg7 {[%emt 0:00:34]} 6. Bg2 {[%emt 0:00:02]} e6 {[%emt 0:01:01]} 7. O-O {[%emt 0:00:20]} Ne7 {[%emt 0:00:17]} 8. e5 {[%emt 0:00:54]} O-O {[%emt 0:04:08]} 9. Re1 {[%emt 0:00:08]} d6 {[%emt 0:08:15]} 10. exd6 {[%emt 0:04:58]} Nf5 {[%emt 0:01:20]} 11. Ne4 {[%emt 0:00:31]} Nc6 {[%emt 0:00:34]} 12. Bg5 {[%emt 0:03:42]} f6 {[%emt 0:01:09]} 13. Bd2 {[%emt 0:00:40]} e5 {[%emt 0:02:09]} 14. Bc3 {[%emt 0:02:35]} Nxd6 {[%emt 0:02:04]} 15. Nxd6 {[%emt 0:00:14]} Qxd6 {[%emt 0:00:02]} 16. Nd2 {[%emt 0:00:08]} Qc7 {[%emt 0:01:12]} 17. a4 {[%emt 0:00:36]} Rad8 {[%emt 0:00:51]} 18. Qe2 {[%emt 0:05:44]} Rfe8 {[%emt 0:17:38]} 19. h4 {[%emt 0:24:01]} f5 {[%emt 0:08:14]} 20. Kh2 {[%emt 0:11:31]} Nd4 {[%emt 0:08:31]} 21. Bxd4 {[%emt 0:08:10]} Bxg2 {[%emt 0:02:11]} 22. Kxg2 {[%emt 0:04:14]} cxd4 {[%emt 0:01:33]} 23. Nc4 {[%emt 0:05:05]} e4 {[%emt 0:04:00]} 24. Qf1 {[%emt 0:06:18]} Re6 {[%emt 0:01:36]} 25. Kg1 {[%emt 0:06:20]} Rde8 {[%emt 0:01:21]} 26. Qg2 {[%emt 0:00:44]} Bf8 {[%emt 0:02:58]} 27. Re2 {[%emt 0:02:19]} Bb4 {[%emt 0:04:36]} 28. Kh2 {[%emt 0:01:52]} a6 {[%emt 0:04:30]} 29. Qf1 {[%emt 0:01:04]} Kg7 {[%emt 0:01:57]} 30. Rc1 {[%emt 0:03:04]} b5 {[%emt 0:02:42]} 31. axb5 {[%emt 0:00:39]} axb5 {[%emt 0:00:03]} 32. Na3 {[%emt 0:02:54]} Qd7 {[%emt 0:03:24]} 33. dxe4 {[%emt 0:01:03]} fxe4 {[%emt 0:00:31]} 34. Rd1 {[%emt 0:00:08]} Ba5 {[%emt 0:03:23]} 35. Qh3 {[%emt 0:00:46]} Qd5 {[%emt 0:00:18]} 36. Qg2 {[%emt 0:00:43]} Bb6 {[%emt 0:02:20]} 37. Nb1 {[%emt 0:02:08]} Qh5 {[%emt 0:03:29]} 38. Rde1 {[%emt 0:00:46]} Ba5 {[%emt 0:01:03]} 39. c3 {[%emt 0:00:02]} Qf5 {[%emt 0:00:22]} 40. b4 {[%emt 0:00:00]} d3 {[%emt 0:00:00]} 41. Ra2 {[%emt 0:00:00]} Bb6 {[%emt 0:00:00]} 42. Rf1 {[%emt 0:00:00]} Rf8 {[%emt 0:00:00]} 43. Nd2 {[%emt 0:00:00]} Qxf2 {[%emt 0:00:00]} 44. Rxf2 {[%emt 0:00:00]} Rxf2 {[%emt 0:00:00]} 0-1

[Event "POR-ch Absolute 2019"]
[Site "Portimao"]
[Date "2019.09.12"]
[Round "6.1"]
[White "Rego, Pedro Filipe"]
[Black "Dias, Paulo"]
[Result "1/2-1/2"]
[ECO "B06"]
[WhiteElo "2235"]
[BlackElo "2322"]
[Annotator "NA"]
[PlyCount "49"]
[EventDate "2019.09.07"]
[EventType "tourn"]
[EventCountry "POR"]
[SourceTitle "playchess.com"]
[Source "ChessBase"]
[SourceQuality "1"]
[TimeControl "5400+30"]

1. e4 {[%emt 0:00:00]} g6 {[%emt 0:00:59]} 2. d4 {[%emt 0:00:13]} Bg7 {[%emt 0:00:10]} 3. Nc3 {[%emt 0:00:20]} c6 {[%emt 0:00:17]} 4. g3 {[%emt 0:08:30]} d5 {[%emt 0:01:55]} 5. exd5 {[%emt 0:04:25]} cxd5 {[%emt 0:00:16]} 6. Bg2 {[%emt 0:00:12]} Nf6 {[%emt 0:02:29]} 7. Bg5 {[%emt 0:02:57]} Nc6 {[%emt 0:07:47]} 8. Nge2 {[%emt 0:03:23]} e6 {[%emt 0:07:18]} 9. Qd2 {[%emt 0:00:30]} b5 {[%emt 0:12:34]} 10. Nxb5 {[%emt 0:05:03]} Rb8 {[%emt 0:17:35]} 11. c4 {[%emt 0:04:28]} Na5 {[%emt 0:03:33]} 12. Qf4 {[%emt 0:23:09]} Rb6 {[%emt 0:03:19]} 13. Nxa7 {[%emt 0:10:18]} Ba6 {[%emt 0:15:27]} 14. Nb5 {[%emt 0:07:14]} O-O {[%emt 0:03:23]} 15. b3 {[%emt 0:08:21]} dxc4 {[%emt 0:00:58]} 16. bxc4 {[%emt 0:00:03]} Nxc4 {[%emt 0:01:06]} 17. Nbc3 {[%emt 0:00:05]} e5 {[%emt 0:07:56]} 18. dxe5 {[%emt 0:01:39]} Nxe5 {[%emt 0:00:03]} 19. O-O {[%emt 0:03:59]} Nd3 {[%emt 0:00:41]} 20. Qa4 {[%emt 0:01:30]} Qc8 {[%emt 0:01:50]} 21. Rab1 {[%emt 0:01:25]} Nb2 {[%emt 0:01:47]} 22. Qa5 {[%emt 0:02:22]} Nc4 {[%emt 0:02:03]} 23. Qa4 {[%emt 0:00:47]} Nb2 {[%emt 0:00:47]} 24. Qa5 {[%emt 0:02:11]} Nc4 {[%emt 0:01:32]} 25. Qa4 {[%emt 0:00:09]} 1/2-1/2

[Event "POR-ch Absolute 2019"]
[Site "Portimao"]
[Date "2019.09.12"]
[Round "6.2"]
[White "Fernandes, Antonio"]
[Black "Sousa, Andre Ventura"]
[Result "0-1"]
[ECO "C55"]
[WhiteElo "2368"]
[BlackElo "2362"]
[Annotator "NA"]
[PlyCount "78"]
[EventDate "2019.09.07"]
[EventType "tourn"]
[EventCountry "POR"]
[SourceTitle "playchess.com"]
[Source "ChessBase"]
[SourceQuality "1"]
[TimeControl "5400+30"]

1. e4 {[%emt 0:17:11]} e5 {[%emt 0:00:00]} 2. Nf3 {[%emt 0:00:42]} Nc6 {[%emt 0:00:00]} 3. Bc4 {[%emt 0:00:12]} Nf6 {[%emt 0:00:00]} 4. Qe2 {[%emt 0:01:50]} Be7 {[%emt 0:04:13]} 5. O-O {[%emt 0:00:31]} O-O {[%emt 0:01:07]} 6. c3 {[%emt 0:00:10]} d5 {[%emt 0:07:38]} 7. exd5 {[%emt 0:16:43]} Nxd5 {[%emt 0:00:17]} 8. d3 {[%emt 0:04:22]} Bg4 {[%emt 0:04:07]} 9. h3 {[%emt 0:00:57]} Bh5 {[%emt 0:00:05]} 10. g4 {[%emt 0:01:29]} Bg6 {[%emt 0:00:05]} 11. Nxe5 {[%emt 0:00:19]} Nxe5 {[%emt 0:00:35]} 12. Qxe5 {[%emt 0:00:04]} c6 {[%emt 0:08:18]} 13. Bxd5 {[%emt 0:07:09]} cxd5 {[%emt 0:01:31]} 14. Bf4 {[%emt 0:06:03]} f5 {[%emt 0:04:06]} 15. g5 {[%emt 0:05:59]} Bxg5 {[%emt 0:00:53]} 16. Na3 {[%emt 0:11:14]} Re8 {[%emt 0:08:10]} 17. Bxg5 {[%emt 0:00:02]} Qxg5+ {[%emt 0:00:11]} 18. Qg3 {[%emt 0:00:02]} Qxg3+ {[%emt 0:03:39]} 19. fxg3 {[%emt 0:00:01]} Re3 {[%emt 0:00:07]} 20. Kg2 {[%emt 0:00:25]} Rxd3 {[%emt 0:12:27]} 21. Rad1 {[%emt 0:00:03]} Rxd1 {[%emt 0:00:06]} 22. Rxd1 {[%emt 0:00:03]} Bf7 {[%emt 0:00:04]} 23. Nc2 {[%emt 0:10:41]} Re8 {[%emt 0:05:42]} 24. Kf2 {[%emt 0:04:59]} g5 {[%emt 0:05:32]} 25. Ne3 {[%emt 0:10:47]} Re5 {[%emt 0:00:10]} 26. Rd4 {[%emt 0:00:16]} Kg7 {[%emt 0:00:37]} 27. Ra4 {[%emt 0:00:20]} a6 {[%emt 0:00:45]} 28. Rb4 {[%emt 0:00:07]} b5 {[%emt 0:00:49]} 29. a4 {[%emt 0:00:04]} Be8 {[%emt 0:00:43]} 30. axb5 {[%emt 0:00:57]} axb5 {[%emt 0:01:31]} 31. Rd4 {[%emt 0:00:09]} Bc6 {[%emt 0:00:19]} 32. h4 {[%emt 0:00:47]} h6 {[%emt 0:00:08]} 33. hxg5 {[%emt 0:00:33]} hxg5 {[%emt 0:00:04]} 34. Rd1 {[%emt 0:00:24]} Kg6 {[%emt 0:02:40]} 35. b4 {[%emt 0:01:22]} f4 {[%emt 0:02:47]} 36. gxf4 {[%emt 0:00:29]} gxf4 {[%emt 0:00:04]} 37. Ng2 {[%emt 0:00:32]} Re4 {[%emt 0:05:02]} 38. Rd4 {[%emt 0:00:14]} Kf5 {[%emt 0:00:59]} 39. Rd3 Ke5 0-1

[Event "POR-ch Absolute 2019"]
[Site "Portimao"]
[Date "2019.09.12"]
[Round "6.3"]
[White "Damaso, Rui"]
[Black "Fidalgo, Andre Neves"]
[Result "1-0"]
[ECO "A16"]
[WhiteElo "2416"]
[BlackElo "2261"]
[Annotator "NA"]
[PlyCount "59"]
[EventDate "2019.09.07"]
[EventType "tourn"]
[EventCountry "POR"]
[SourceTitle "playchess.com"]
[Source "ChessBase"]
[SourceQuality "1"]
[TimeControl "5400+30"]

1. c4 {[%emt 0:00:24]} Nf6 {[%emt 0:00:00]} 2. Nc3 {[%emt 0:00:29]} d5 {[%emt 0:00:58]} 3. cxd5 {[%emt 0:01:24]} Nxd5 {[%emt 0:00:06]} 4. g3 {[%emt 0:01:01]} g6 {[%emt 0:00:07]} 5. Bg2 {[%emt 0:00:04]} Nb6 {[%emt 0:01:40]} 6. d3 {[%emt 0:00:19]} Bg7 {[%emt 0:00:07]} 7. Be3 {[%emt 0:00:19]} O-O {[%emt 0:01:08]} 8. Qd2 {[%emt 0:04:04]} Nc6 {[%emt 0:06:16]} 9. Bxc6 {[%emt 0:03:23]} bxc6 {[%emt 0:00:06]} 10. Bh6 {[%emt 0:00:20]} Nd5 {[%emt 0:00:35]} 11. Bxg7 {[%emt 0:00:40]} Kxg7 {[%emt 0:00:08]} 12. Rc1 {[%emt 0:00:15]} Rb8 {[%emt 0:01:40]} 13. Nf3 {[%emt 0:01:43]} f6 {[%emt 0:02:48]} 14. Ne4 {[%emt 0:03:39]} Bh3 {[%emt 0:07:19]} 15. Rg1 {[%emt 0:11:56]} Bg4 {[%emt 0:07:31]} 16. Nd4 {[%emt 0:02:40]} Nb4 {[%emt 0:00:54]} 17. Rc4 {[%emt 0:01:36]} e5 {[%emt 0:03:48]} 18. Nxc6 {[%emt 0:03:49]} Nxc6 {[%emt 0:00:13]} 19. Rxc6 {[%emt 0:00:03]} Rf7 {[%emt 0:00:40]} 20. Qc3 {[%emt 0:03:49]} Rb6 {[%emt 0:07:30]} 21. Rc5 {[%emt 0:02:18]} Qb8 {[%emt 0:13:43]} 22. b3 {[%emt 0:04:28]} Qb7 {[%emt 0:01:48]} 23. f3 {[%emt 0:02:18]} Bf5 {[%emt 0:00:21]} 24. Nd2 {[%emt 0:01:24]} Ra6 {[%emt 0:00:34]} 25. g4 {[%emt 0:00:55]} Be6 {[%emt 0:01:55]} 26. g5 {[%emt 0:00:21]} Rxa2 {[%emt 0:00:37]} 27. gxf6+ {[%emt 0:00:32]} Kg8 {[%emt 0:00:20]} 28. Rg5 {[%emt 0:01:55]} Qa6 {[%emt 0:05:22]} 29. Rc6 {[%emt 0:02:08]} Qc8 {[%emt 0:06:53]} 30. Rxe5 {[%emt 0:00:24]} 1-0

[Event "POR-ch Absolute 2019"]
[Site "Portimao"]
[Date "2019.09.12"]
[Round "6.4"]
[White "Galego, Luis"]
[Black "Leonardo, Joao"]
[Result "1-0"]
[ECO "B06"]
[WhiteElo "2501"]
[BlackElo "2177"]
[Annotator "ChessBase"]
[PlyCount "95"]
[EventDate "2019.09.07"]
[EventType "tourn"]
[EventCountry "POR"]
[SourceTitle "playchess.com"]
[Source "ChessBase"]
[SourceQuality "1"]
[TimeControl "5400+30"]

1. d4 {[%emt 0:02:08]} g6 {[%emt 0:00:00]} 2. e4 {[%emt 0:00:30]} Bg7 {[%emt 0:00:00]} 3. c3 {[%emt 0:00:22]} d6 {[%emt 0:00:18]} 4. Nf3 {[%emt 0:00:41]} c6 {[%emt 0:01:45]} 5. h3 {[%emt 0:01:09]} Nf6 {[%emt 0:00:09]} 6. Bd3 {[%emt 0:00:37]} O-O {[%emt 0:00:03]} 7. O-O {[%emt 0:00:12]} Nbd7 {[%emt 0:01:00]} 8. e5 {[%emt 0:04:20]} Ne8 {[%emt 0:02:13]} 9. exd6 {[%emt 0:00:16]} exd6 {[%emt 0:00:57]} 10. Bg5 {[%emt 0:01:33]} Bf6 {[%emt 0:01:14]} 11. Bf4 {[%emt 0:03:01]} Bg7 {[%emt 0:05:02]} 12. Nbd2 {[%emt 0:08:13]} d5 {[%emt 0:04:08]} 13. Re1 {[%emt 0:00:19]} Ndf6 {[%emt 0:03:01]} 14. a4 {[%emt 0:01:48]} Nd6 {[%emt 0:00:40]} 15. a5 {[%emt 0:01:04]} Re8 {[%emt 0:04:35]} 16. a6 {[%emt 0:07:39]} Nfe4 {[%emt 0:09:18]} 17. axb7 {[%emt 0:03:22]} Bxb7 {[%emt 0:00:04]} 18. Qc2 {[%emt 0:08:50]} f5 {[%emt 0:06:23]} 19. Be5 {[%emt 0:02:28]} Nxd2 {[%emt 0:02:11]} 20. Nxd2 {[%emt 0:01:44]} Bxe5 {[%emt 0:02:06]} 21. dxe5 {[%emt 0:00:07]} Ne4 {[%emt 0:00:10]} 22. Bxe4 {[%emt 0:01:58]} fxe4 {[%emt 0:00:14]} 23. Nxe4 {[%emt 0:01:39]} Rxe5 {[%emt 0:02:05]} 24. Nc5 {[%emt 0:00:29]} Rxe1+ {[%emt 0:00:30]} 25. Rxe1 {[%emt 0:00:05]} Bc8 {[%emt 0:00:07]} 26. Qa4 {[%emt 0:00:29]} Bd7 {[%emt 0:13:04]} 27. Qf4 {[%emt 0:04:17]} Rc8 {[%emt 0:11:08]} 28. h4 {[%emt 0:10:17]} Bf5 {[%emt 0:03:50]} 29. h5 {[%emt 0:09:09]} Qf8 {[%emt 0:07:19]} 30. hxg6 {[%emt 0:01:24]} Bxg6 {[%emt 0:08:51]} 31. Qd4 {[%emt 0:01:33]} Re8 {[%emt 0:01:26]} 32. Re3 {[%emt 0:00:57]} Qf7 {[%emt 0:00:23]} 33. b4 {[%emt 0:00:47]} Re7 {[%emt 0:00:29]} 34. f3 {[%emt 0:01:47]} Bf5 {[%emt 0:02:24]} 35. Kf2 {[%emt 0:01:11]} Qe8 {[%emt 0:03:33]} 36. Qf4 {[%emt 0:05:13]} Rxe3 {[%emt 0:02:30]} 37. Qxe3 {[%emt 0:00:11]} Qd8 {[%emt 0:00:36]} 38. Qe5 {[%emt 0:02:55]} Bc8 {[%emt 0:03:03]} 39. Qg3+ {[%emt 0:02:10]} Kf8 {[%emt 0:00:25]} 40. Qf4+ {[%emt 0:00:00]} Kg8 {[%emt 0:00:00]} 41. Nb3 {[%emt 0:00:00]} Be6 {[%emt 0:00:00]} 42. Nd4 {[%emt 0:00:00]} Bd7 {[%emt 0:00:00]} 43. Qd6 {[%emt 0:00:00]} Kf7 {[%emt 0:00:00]} 44. g4 {[%emt 0:00:00]} Kg8 {[%emt 0:00:00]} 45. Ne2 {[%emt 0:00:00]} Qe8 {[%emt 0:00:00]} 46. Nf4 {[%emt 0:00:00]} Bc8 {[%emt 0:00:00]} 47. Nh5 {[%emt 0:00:00]} Qe6 {[%emt 0:01:03]} 48. Qc7 {[%emt 0:00:00]} 1-0

[Event "POR-ch Absolute 2019"]
[Site "Portimao"]
[Date "2019.09.12"]
[Round "6.5"]
[White "Veiga, Jose Francisco R P N"]
[Black "Rocha, Sergio"]
[Result "0-1"]
[ECO "B01"]
[WhiteElo "2345"]
[BlackElo "2356"]
[Annotator "NA"]
[PlyCount "58"]
[EventDate "2019.09.07"]
[EventType "tourn"]
[EventCountry "POR"]
[SourceTitle "playchess.com"]
[Source "ChessBase"]
[SourceQuality "1"]
[TimeControl "5400+30"]

1. e4 {[%emt 0:00:00]} d5 {[%emt 0:00:00]} 2. exd5 {[%emt 0:00:27]} Qxd5 {[%emt 0:00:00]} 3. Nc3 {[%emt 0:00:18]} Qa5 {[%emt 0:00:00]} 4. d4 {[%emt 0:00:21]} Nf6 {[%emt 0:00:09]} 5. Nf3 {[%emt 0:00:12]} c6 {[%emt 0:00:06]} 6. Bc4 {[%emt 0:00:27]} Bf5 {[%emt 0:00:08]} 7. Bd2 {[%emt 0:01:29]} e6 {[%emt 0:00:26]} 8. Qe2 {[%emt 0:05:39]} Bb4 {[%emt 0:00:26]} 9. O-O {[%emt 0:05:08]} Nbd7 {[%emt 0:00:46]} 10. a3 {[%emt 0:01:09]} Bxc3 {[%emt 0:00:15]} 11. Bxc3 {[%emt 0:00:17]} Qc7 {[%emt 0:00:35]} 12. Ba2 {[%emt 0:06:21]} O-O {[%emt 0:00:43]} 13. Rac1 {[%emt 0:04:30]} b5 {[%emt 0:07:27]} 14. Bd2 {[%emt 0:06:37]} Be4 {[%emt 0:04:53]} 15. Ng5 {[%emt 0:04:55]} Bd5 {[%emt 0:04:03]} 16. b3 {[%emt 0:00:44]} h6 {[%emt 0:00:09]} 17. Nh3 {[%emt 0:02:58]} Be4 {[%emt 0:01:29]} 18. Rfd1 {[%emt 0:09:08]} Bf5 {[%emt 0:04:07]} 19. Bf4 {[%emt 0:01:41]} Qa5 {[%emt 0:01:01]} 20. Bd6 {[%emt 0:00:29]} Rfe8 {[%emt 0:00:28]} 21. Nf4 {[%emt 0:01:48]} Ne4 {[%emt 0:01:56]} 22. Bb4 {[%emt 0:03:00]} Qc7 {[%emt 0:00:27]} 23. Nd3 {[%emt 0:00:29]} a5 {[%emt 0:00:21]} 24. Be1 {[%emt 0:03:48]} Qd6 {[%emt 0:09:38]} 25. b4 {[%emt 0:00:28]} Ndf6 {[%emt 0:03:34]} 26. Ne5 {[%emt 0:06:09]} axb4 {[%emt 0:05:09]} 27. Bxb4 {[%emt 0:00:10]} c5 {[%emt 0:00:21]} 28. dxc5 {[%emt 0:04:20]} Qxe5 {[%emt 0:00:41]} 29. f3 {[%emt 0:00:04]} Qb2 {[%emt 0:02:55]} 0-1

[Event "POR-ch Absolute 2019"]
[Site "Portimao"]
[Date "2019.09.13"]
[Round "7.1"]
[White "Rocha, Sergio"]
[Black "Rego, Pedro Filipe"]
[Result "1/2-1/2"]
[ECO "A58"]
[WhiteElo "2356"]
[BlackElo "2235"]
[Annotator "NA"]
[PlyCount "59"]
[EventDate "2019.09.07"]
[EventType "tourn"]
[EventCountry "POR"]
[SourceTitle "playchess.com"]
[Source "ChessBase"]
[SourceQuality "1"]
[TimeControl "5400+30"]

1. d4 {[%emt 0:00:00]} Nf6 {[%emt 0:10:07]} 2. c4 {[%emt 0:00:00]} c5 {[%emt 0:00:22]} 3. d5 {[%emt 0:00:00]} b5 {[%emt 0:00:04]} 4. cxb5 {[%emt 0:00:00]} a6 {[%emt 0:00:03]} 5. bxa6 {[%emt 0:00:08]} g6 {[%emt 0:00:11]} 6. Nc3 {[%emt 0:00:11]} Bg7 {[%emt 0:00:04]} 7. e4 {[%emt 0:00:07]} O-O {[%emt 0:00:05]} 8. Nf3 {[%emt 0:02:11]} Qa5 {[%emt 0:01:01]} 9. Bd2 {[%emt 0:09:41]} Bxa6 {[%emt 0:04:29]} 10. Bxa6 {[%emt 0:00:23]} Qxa6 {[%emt 0:00:16]} 11. Qe2 {[%emt 0:00:18]} e6 {[%emt 0:00:46]} 12. dxe6 {[%emt 0:04:35]} fxe6 {[%emt 0:00:13]} 13. Be3 {[%emt 0:03:47]} Rc8 {[%emt 0:17:59]} 14. Qxa6 {[%emt 0:09:55]} Nxa6 {[%emt 0:00:54]} 15. O-O {[%emt 0:02:09]} Nb4 {[%emt 0:08:10]} 16. Bg5 {[%emt 0:04:51]} d5 {[%emt 0:13:23]} 17. Bxf6 {[%emt 0:15:23]} Bxf6 {[%emt 0:00:12]} 18. exd5 {[%emt 0:01:59]} Nxd5 {[%emt 0:09:00]} 19. Rfc1 {[%emt 0:07:58]} Nxc3 {[%emt 0:04:11]} 20. bxc3 {[%emt 0:00:18]} Ra3 {[%emt 0:00:37]} 21. Rc2 {[%emt 0:00:06]} Rca8 {[%emt 0:00:26]} 22. h4 {[%emt 0:09:37]} Bxc3 {[%emt 0:05:42]} 23. Rb1 {[%emt 0:03:44]} Bb4 {[%emt 0:02:39]} 24. Rbb2 {[%emt 0:00:09]} Rd3 {[%emt 0:01:55]} 25. Ng5 {[%emt 0:03:07]} Ra6 {[%emt 0:04:19]} 26. Ne4 {[%emt 0:01:47]} Ra5 {[%emt 0:00:44]} 27. Re2 {[%emt 0:02:25]} Ra6 {[%emt 0:03:27]} 28. Rec2 {[%emt 0:05:49]} Ra5 {[%emt 0:02:21]} 29. Re2 {[%emt 0:00:30]} Ra6 {[%emt 0:00:04]} 30. Rec2 {[%emt 0:02:19]} 1/2-1/2